bitfinex/quotes_BTCUSD_20251205
["timestamp","ask_amount","ask_price","bid_price","bid_amount"]
[1764965256850,0.01506,89533.0,89532.0,0.00024424]
[1764965256984,0.03972,89533.0,89532.0,0.00024424]
[1764965257183,0.03972,89533.0,89532.0,0.00124424]
[1764965257425,0.01116831,89539.0,89535.0,0.01116881]
[1764965257628,0.2458035,89540.0,89535.0,0.01116881]
[1764965257629,0.01127,89540.0,89538.0,0.22336696]
[1764965258285,0.01506,89539.0,89536.0,0.01116869]
[1764965258492,0.01506,89537.0,89535.0,0.22337605]
[1764965258939,0.03972,89536.0,89534.0,0.23654712]
[1764965259164,0.01506,89535.0,89534.0,0.23454712]
[1764965259288,0.03972,89535.0,89532.0,0.01141343]
[1764965259487,0.01506,89533.0,89532.0,0.00024424]
[1764965259924,0.03972,89533.0,89532.0,0.00024424]
[1764965260776,0.26310132,89533.0,89532.0,0.00024424]
[1764965260930,0.26410132,89533.0,89532.0,0.00224424]
[1764965261709,0.26410132,89533.0,89532.0,0.00324424]
[1764965262684,0.04072,89533.0,89532.0,0.00324424]
[1764965262920,0.001,89533.0,89532.0,0.00324424]
[1764965263076,0.001,89533.0,89532.0,0.22662805]
[1764965263904,0.001,89533.0,89532.0,0.24854069]
[1764965265034,0.001,89533.0,89532.0,0.22662805]
[1764965265164,0.001,89533.0,89532.0,0.24854069]
[1764965265368,0.01606,89533.0,89532.0,0.24854069]
[1764965265582,0.01606,89533.0,89532.0,0.02515688]
[1764965265793,0.01606,89533.0,89532.0,0.24854069]
[1764965265995,0.04072,89533.0,89532.0,0.00324424]
[1764965266156,0.26410132,89533.0,89532.0,0.00324424]
[1764965267076,0.04072,89533.0,89532.0,0.00324424]
[1764965267508,0.26410132,89533.0,89532.0,0.00324424]
[1764965268980,0.04072,89533.0,89532.0,0.00324424]
[1764965269481,0.26410132,89533.0,89532.0,0.00324424]
[1764965269862,0.01606,89533.0,89532.0,0.22662805]
[1764965270062,0.001,89533.0,89532.0,0.34961368]
[1764965270667,0.001,89533.0,89532.0,0.30424104]
[1764965270868,0.001,89533.0,89532.0,0.32615368]
[1764965271191,0.001,89533.0,89532.0,0.30806368]
[1764965271383,0.01158,89540.0,89539.0,0.24527899]
[1764965271885,0.02679,89540.0,89539.0,0.24527899]
[1764965272889,0.02779,89540.0,89539.0,0.004]
[1764965273108,0.27612672,89540.0,89539.0,0.004]
[1764965275067,0.27612672,89540.0,89539.0,0.005]
[1764965275358,0.37167552,89540.0,89539.0,0.005]
[1764965275532,0.3957635,89540.0,89539.0,0.005]
[1764965276011,0.3178947,89540.0,89539.0,0.005]
[1764965276358,0.30426365,89540.0,89539.0,0.005]
[1764965276518,0.3178947,89540.0,89539.0,0.004]
[1764965277030,0.3178947,89540.0,89539.0,0.005]
[1764965277552,0.3178947,89540.0,89539.0,0.004]
[1764965277756,0.22338132,89533.0,89532.0,0.00024424]
[1764965277972,0.23859132,89533.0,89532.0,0.00024424]
[1764965278263,0.26195132,89533.0,89532.0,0.00024424]
[1764965279246,0.26195132,89533.0,89532.0,0.00224424]
[1764965279461,0.26795132,89533.0,89532.0,0.00224424]
[1764965280442,0.02121,89533.0,89532.0,0.00224424]
[1764965280644,0.02121,89533.0,89532.0,0.22562805]
[1764965280851,0.26795132,89533.0,89532.0,0.00224424]
[1764965281728,0.26795132,89533.0,89511.0,0.15861]
[1764965281729,0.22341126,89521.0,89507.0,0.1488]
[1764965281944,0.25630126,89521.0,89507.0,0.1488]
[1764965282189,0.27966126,89521.0,89507.0,0.1488]
[1764965282804,0.27966126,89521.0,89508.0,0.01117218]
[1764965283003,0.28066126,89521.0,89520.0,0.0044]
[1764965283305,0.27966126,89521.0,89520.0,0.0004]
[1764965283671,0.27966126,89521.0,89520.0,0.0024]
[1764965284188,0.27966126,89521.0,89520.0,0.0004]
[1764965284393,0.27966126,89521.0,89520.0,0.0014]
[1764965284732,0.28166126,89521.0,89520.0,0.0054]
[1764965284855,0.01721,89521.0,89520.0,0.0054]
[1764965285066,0.04093,89521.0,89520.0,0.0054]
[1764965286692,0.26434126,89521.0,89520.0,0.0054]
[1764965287318,0.26434126,89521.0,89520.0,0.00576239]
[1764965290985,0.37771078,89521.0,89520.0,0.00576239]
[1764965291858,0.26434126,89521.0,89520.0,0.00576239]
[1764965292266,0.28202126,89521.0,89520.0,0.00576239]
[1764965292490,0.26434126,89521.0,89520.0,0.00576239]
[1764965292657,0.01721,89521.0,89520.0,0.22917615]
[1764965293109,0.002,89521.0,89520.0,0.25108879]
[1764965293544,0.002,89521.0,89520.0,0.32937178]
[1764965293735,0.002,89521.0,89520.0,0.35333178]
[1764965293940,0.002,89521.0,89520.0,0.82513178]
[1764965294552,0.01319287,89540.0,89539.0,0.22336635]
[1764965294934,0.01158,89540.0,89539.0,0.22336635]
[1764965295133,0.01158,89540.0,89539.0,0.24527899]
[1764965295354,0.01116831,89539.0,89533.0,0.01116906]
[1764965295534,0.01116844,89538.0,89535.0,0.01116881]
[1764965295732,0.22337669,89535.0,89532.0,0.01116919]
[1764965295958,0.02671881,89535.0,89529.0,0.22339117]
[1764965296168,0.22337887,89534.0,89530.0,0.22338657]
[1764965296363,0.01555,89532.0,89529.0,0.22339117]
[1764965296541,0.01116894,89534.0,89528.0,0.01116968]
[1764965296746,0.24709913,89534.0,89532.0,0.23455193]
[1764965297146,0.01555,89533.0,89531.0,0.23455542]
[1764965297557,0.23893138,89533.0,89531.0,0.01116931]
[1764965297963,0.01555,89533.0,89531.0,0.01116931]
[1764965298170,0.01555,89533.0,89532.0,0.22338381]
[1764965298367,0.02771906,89533.0,89531.0,0.002]
[1764965298578,0.25110274,89533.0,89531.0,0.003]
[1764965298976,0.25110274,89533.0,89531.0,0.002]
[1764965299186,0.01655,89533.0,89532.0,0.22338381]
[1764965299387,0.01655,89533.0,89532.0,0.22438381]
[1764965299817,0.01655,89533.0,89532.0,0.22338381]
[1764965300544,0.001,89533.0,89532.0,0.22338381]
[1764965301193,0.04027,89533.0,89531.0,0.22638571]
[1764965301414,0.01555,89532.0,89531.0,0.22338571]
[1764965301999,0.001,89533.0,89532.0,0.22338381]
[1764965302432,0.2345416,89537.0,89534.0,0.2233777]
[1764965302640,0.01555,89533.0,89531.0,0.23455545]
[1764965302861,0.01555,89533.0,89531.0,0.23755556]
[1764965303031,0.03488869,89536.0,89531.0,0.23755556]
[1764965303032,0.27406381,89532.0,89531.0,0.001]
[1764965303262,0.05068,89532.0,89531.0,0.001]
[1764965303839,0.05068,89532.0,89530.0,0.22338864]
[1764965304160,0.02372,89531.0,89529.0,0.23456073]
[1764965304384,0.02372,89531.0,89530.0,0.2233888]
[1764965304731,0.01555,89531.0,89530.0,0.2233888]
[1764965304938,0.03927,89531.0,89530.0,0.2233888]
[1764965305133,0.03927,89531.0,89530.0,0.2253888]
[1764965305784,0.01555,89531.0,89530.0,0.2253888]
[1764965305987,0.01555,89531.0,89530.0,0.2233888]
[1764965306188,0.01655,89531.0,89530.0,0.2253888]
[1764965307182,0.04027,89531.0,89530.0,0.002]
[1764965307388,0.04027,89531.0,89530.0,0.2263888]
[1764965310558,0.01655,89531.0,89530.0,0.2263888]
[1764965312656,0.001,89531.0,89530.0,0.2263888]
[1764965313096,0.001,89531.0,89530.0,0.26482144]
[1764965313844,0.001,89531.0,89530.0,0.24830144]
[1764965317091,0.001,89531.0,89530.0,0.35149443]
[1764965317304,0.001,89531.0,89530.0,0.67449443]
[1764965317768,0.001,89531.0,89530.0,0.82329443]
[1764965318142,0.01141,89553.0,89552.0,0.22333392]
[1764965318345,0.01141,89553.0,89547.0,0.23451366]
[1764965318346,0.02482,89552.0,89547.0,0.02191264]
[1764965318692,0.02482,89552.0,89545.0,0.23451894]
[1764965318693,0.25001133,89548.0,89545.0,0.23451894]
[1764965318812,0.0155,89546.0,89544.0,0.01116769]
[1764965319015,0.0155,89546.0,89544.0,0.23451962]
[1764965319241,0.04032,89545.0,89544.0,0.23451962]
[1764965319456,0.01116794,89542.0,89535.0,0.01116881]
[1764965319668,0.25004299,89536.0,89535.0,0.00011815]
[1764965320055,0.27486299,89536.0,89535.0,0.00011815]
[1764965321782,0.27686299,89536.0,89535.0,0.00411815]
[1764965322622,0.27686299,89536.0,89535.0,0.00611815]
[1764965322832,0.27686252,89536.0,89535.0,0.00611815]
[1764965323809,0.27686252,89536.0,89535.0,0.00411815]
[1764965324829,0.27486252,89536.0,89535.0,0.00011815]
[1764965325243,0.28186252,89536.0,89535.0,0.00211815]
[1764965325662,0.04732,89536.0,89535.0,0.00211815]
[1764965326243,0.27069383,89536.0,89535.0,0.00211815]
[1764965333484,0.007,89536.0,89535.0,0.24740712]
[1764965334224,0.04636,89536.0,89535.0,0.02403079]
[1764965334424,0.02343,89536.0,89535.0,0.02403079]
[1764965334628,0.24680383,89536.0,89535.0,0.02403079]
[1764965335028,0.26973383,89536.0,89535.0,0.00211815]
[1764965337764,0.38725944,89536.0,89535.0,0.00211815]
[1764965339620,0.40409266,89536.0,89535.0,0.00211815]
[1764965339792,3.32102565,89536.0,89535.0,0.00211815]
[1764965339975,3.35556848,89536.0,89535.0,0.00211815]
[1764965340692,3.35556848,89536.0,89524.0,0.00024158]
[1764965340693,0.22340128,89525.0,89524.0,0.00024158]
[1764965340859,0.36087256,89525.0,89524.0,0.00024158]
[1764965341054,0.40789185,89525.0,89524.0,0.00024158]
[1764965342692,0.42289185,89525.0,89524.0,0.00024158]
[1764965344113,0.75633263,89525.0,89524.0,0.00024158]
[1764965344351,0.75633263,89525.0,89520.0,0.0004]
[1764965344352,0.54641126,89521.0,89520.0,0.0004]
[1764965344505,2.00778055,89521.0,89520.0,0.0004]
[1764965344713,2.03275055,89521.0,89520.0,0.0004]
[1764965345311,3.19577955,89521.0,89520.0,0.0004]
[1764965345516,3.19777955,89521.0,89520.0,0.0004]
[1764965345716,3.30612572,89521.0,89520.0,0.0004]
[1764965346219,3.31712572,89521.0,89520.0,0.0004]
[1764965346746,2.91199672,89521.0,89520.0,0.0004]
[1764965347269,2.91159672,89521.0,89520.0,0.0004]
[1764965348244,3.31712572,89521.0,89520.0,0.0004]
[1764965348446,3.33395894,89521.0,89520.0,0.0004]
[1764965348666,2.98992994,89521.0,89520.0,0.0004]
[1764965349229,1.21882994,89521.0,89520.0,0.0004]
[1764965349424,0.65358377,89521.0,89520.0,0.0004]
[1764965350068,0.32417448,89521.0,89520.0,0.0004]
[1764965352849,0.67119873,89521.0,89520.0,0.0004]
[1764965354010,3.24322773,89521.0,89520.0,0.0004]
[1764965355241,0.22342124,89517.0,89516.0,0.00028174]
[1764965355624,0.3497363,89517.0,89516.0,0.00028174]
[1764965355808,0.37376055,89517.0,89516.0,0.00028174]
[1764965356010,0.39873055,89517.0,89516.0,0.00028174]
[1764965356966,0.40073055,89517.0,89516.0,0.00028174]
[1764965357416,0.26700124,89517.0,89516.0,0.00028174]
[1764965357591,0.26500124,89517.0,89516.0,0.00028174]
[1764965357789,0.28000124,89517.0,89516.0,0.00028174]
[1764965357992,0.28300124,89517.0,89516.0,0.00028174]
[1764965358420,0.28000124,89517.0,89516.0,0.00028174]
[1764965358595,0.26500124,89517.0,89516.0,0.00028174]
[1764965358795,0.26600124,89517.0,89516.0,0.00028174]
[1764965359019,0.27600124,89517.0,89516.0,0.00028174]
[1764965359918,0.37859528,89517.0,89516.0,0.00028174]
[1764965360119,0.40262444,89517.0,89516.0,0.00028174]
[1764965361501,0.42452843,89517.0,89516.0,0.00028174]
[1764965361715,0.40262444,89517.0,89516.0,0.00028174]
[1764965363542,0.3177104,89517.0,89516.0,0.00028174]
[1764965366303,0.32815974,89517.0,89516.0,0.00028174]
[1764965367056,0.3177104,89517.0,89516.0,0.00028174]
[1764965367254,0.32815997,89517.0,89516.0,0.00028174]
[1764965367516,0.3341894,89517.0,89516.0,0.00028174]
[1764965367714,0.32815997,89517.0,89516.0,0.00028174]
[1764965367916,0.43786503,89517.0,89516.0,0.00028174]
[1764965368090,0.45976902,89517.0,89516.0,0.00028174]
[1764965368386,0.43786503,89517.0,89516.0,0.00028174]
[1764965368970,0.44233897,89517.0,89516.0,0.00028174]
[1764965369720,0.48248095,89517.0,89516.0,0.00028174]
[1764965371090,0.44233897,89517.0,89516.0,0.00028174]
[1764965371638,0.48248095,89517.0,89516.0,0.00028174]
[1764965372855,0.33263391,89517.0,89516.0,0.00028174]
[1764965373059,0.32815997,89517.0,89516.0,0.00028174]
[1764965373264,0.31047997,89517.0,89516.0,0.00028174]
[1764965373491,0.32815997,89517.0,89516.0,0.00028174]
[1764965375322,0.3177104,89517.0,89516.0,0.00028174]
[1764965376807,0.2750604,89517.0,89516.0,0.00028174]
[1764965376979,0.27425124,89517.0,89516.0,0.00028174]
[1764965379674,0.05083,89517.0,89516.0,0.22370548]
[1764965380339,0.27425124,89517.0,89516.0,0.00028174]
[1764965382678,0.05083,89517.0,89516.0,0.00028174]
[1764965383095,0.27425124,89517.0,89516.0,0.00028174]
[1764965383285,0.05083,89517.0,89516.0,0.00028174]
[1764965383690,0.05083,89517.0,89516.0,0.22370548]
[1764965383898,0.05083,89517.0,89516.0,0.00028174]
[1764965384506,0.27425124,89517.0,89516.0,0.00028174]
[1764965386008,0.05083,89517.0,89516.0,0.22370548]
[1764965386840,0.02761,89517.0,89516.0,0.22370548]
[1764965387018,0.02761,89517.0,89516.0,0.02219438]
[1764965387237,0.011,89517.0,89516.0,0.00028174]
[1764965387421,0.27295124,89517.0,89516.0,0.00028174]
[1764965390434,0.37579123,89517.0,89516.0,0.00028174]
[1764965393156,0.27295124,89517.0,89516.0,0.00028174]
[1764965393353,0.24973124,89517.0,89516.0,0.00028174]
[1764965393538,0.27365124,89517.0,89516.0,0.00028174]
[1764965400649,0.27365124,89517.0,89510.0,0.0004]
[1764965400650,0.01117206,89509.0,89500.0,0.0004]
[1764965400800,2.82350019,89501.0,89500.0,0.0004]
[1764965401007,1.35565832,89501.0,89500.0,0.0004]
[1764965401233,1.35565832,89501.0,89480.0,0.0004]
[1764965401234,0.22348616,89491.0,89480.0,0.0004]
[1764965401431,0.28600938,89491.0,89480.0,0.0004]
[1764965401646,0.30992938,89491.0,89480.0,0.0004]
[1764965401861,0.44087979,89491.0,89480.0,0.0004]
[1764965402009,0.45133599,89491.0,89480.0,0.0004]
[1764965402382,0.44098137,89491.0,89480.0,0.0004]
[1764965402659,0.77442873,89491.0,89480.0,0.0004]
[1764965403163,0.74630137,89491.0,89480.0,0.0004]
[1764965403420,0.22351113,89481.0,89480.0,0.0004]
[1764965403635,0.69318113,89481.0,89480.0,0.0004]
[1764965403894,0.61064561,89481.0,89480.0,0.0004]
[1764965404310,0.38713448,89481.0,89480.0,0.0004]
[1764965404438,0.38874735,89481.0,89480.0,0.0004]
[1764965404641,0.600174,89481.0,89480.0,0.0004]
[1764965405680,0.70987906,89481.0,89480.0,0.0004]
[1764965405942,0.619854,89481.0,89480.0,0.0004]
[1764965406088,0.602174,89481.0,89480.0,0.0004]
[1764965406302,0.22353611,89471.0,89470.0,0.0004]
[1764965406541,0.31753032,89471.0,89470.0,0.0004]
[1764965406745,0.29426898,89471.0,89470.0,0.0004]
[1764965407087,0.2235611,89461.0,89460.0,0.0004]
[1764965407261,0.29429397,89461.0,89460.0,0.0004]
[1764965407892,0.31112719,89461.0,89460.0,0.0004]
[1764965408103,0.38918623,89461.0,89460.0,0.0004]
[1764965408330,3.28428145,89461.0,89460.0,0.0004]
[1764965408530,0.22358609,89451.0,89440.0,0.0004]
[1764965408747,0.25134609,89451.0,89440.0,0.0004]
[1764965408957,0.36479224,89451.0,89440.0,0.0004]
[1764965409800,0.29270609,89451.0,89440.0,0.0004]
[1764965410402,0.31018339,89451.0,89440.0,0.0004]
[1764965411821,0.31218339,89451.0,89450.0,9.707e-05]
[1764965412138,0.31218339,89451.0,89450.0,0.00209194]
[1764965412336,0.29450339,89451.0,89450.0,0.00209194]
[1764965412677,0.31218339,89451.0,89450.0,0.00209194]
[1764965414131,0.63518339,89451.0,89450.0,0.00209194]
[1764965414416,3.20721239,89451.0,89450.0,0.00209194]
[1764965417478,3.18953239,89451.0,89450.0,0.00209194]
[1764965417966,3.20721239,89451.0,89450.0,0.00209194]
[1764965418456,0.29450339,89451.0,89450.0,0.00209194]
[1764965418665,0.31218339,89451.0,89450.0,0.00209194]
[1764965419270,3.20721239,89451.0,89450.0,0.00209194]
[1764965420777,0.22361109,89441.0,89440.0,0.0004]
[1764965420985,0.27449431,89441.0,89440.0,0.0004]
[1764965421184,0.39494128,89441.0,89440.0,0.0004]
[1764965421628,0.29817431,89441.0,89440.0,0.0004]
[1764965422207,0.29917431,89441.0,89440.0,0.0004]
[1764965422694,0.31056431,89441.0,89440.0,0.0004]
[1764965423115,3.20559331,89441.0,89440.0,0.0004]
[1764965423317,3.20559331,89441.0,89430.0,0.0004]
[1764965423318,0.54663609,89431.0,89430.0,0.0004]
[1764965423517,0.5466611,89421.0,89420.0,0.0004]
[1764965423814,0.5921011,89421.0,89420.0,0.0004]
[1764965424014,0.6157811,89421.0,89420.0,0.0004]
[1764965424512,0.66620245,89421.0,89420.0,0.00079675]
[1764965424937,0.78790751,89421.0,89420.0,0.00079675]
[1764965425170,0.67820245,89421.0,89420.0,0.00079675]
[1764965425522,0.68020245,89421.0,89420.0,0.00079675]
[1764965426094,0.2891011,89421.0,89420.0,0.00079675]
[1764965426301,0.3067811,89421.0,89420.0,0.00079675]
[1764965427256,0.30839397,89421.0,89420.0,0.00079675]
[1764965427457,0.402734,89421.0,89420.0,0.00079675]
[1764965428398,0.29071397,89421.0,89420.0,0.00079675]
[1764965428599,0.30839397,89421.0,89420.0,0.00079675]
[1764965431738,0.30839397,89421.0,89420.0,0.00170415]
[1764965432268,0.33241155,89421.0,89420.0,0.00170415]
[1764965432470,0.34283278,89421.0,89420.0,0.00170415]
[1764965432706,0.45113392,89421.0,89420.0,0.00170415]
[1764965432920,0.43345392,89421.0,89420.0,0.00170415]
[1764965433124,0.34283278,89421.0,89420.0,0.00170415]
[1764965433300,0.33241155,89421.0,89420.0,0.00170415]
[1764965433603,0.34283875,89421.0,89420.0,0.00170415]
[1764965434439,0.31882117,89421.0,89420.0,0.00170415]
[1764965434672,0.34283875,89421.0,89420.0,0.00170415]
[1764965434879,0.30147875,89421.0,89420.0,0.00170415]
[1764965435081,0.33170155,89421.0,89420.0,0.00170415]
[1764965435707,0.33170155,89421.0,89420.0,0.22536775]
[1764965435708,0.014,89421.0,89420.0,0.22536775]
[1764965436115,0.2376611,89421.0,89420.0,0.00170415]
[1764965436323,0.02957,89421.0,89420.0,0.00170415]
[1764965436524,0.014,89421.0,89420.0,0.00170415]
[1764965436725,0.012,89421.0,89420.0,0.00170415]
[1764965437249,0.01118255,89425.0,89420.0,0.01288733]
[1764965437444,0.22365369,89424.0,89421.0,0.2236611]
[1764965437690,0.22365685,89423.0,89421.0,0.01118305]
[1764965437900,0.23483637,89424.0,89421.0,0.23484249]
[1764965438141,0.2348337,89425.0,89422.0,0.23484147]
[1764965438277,0.2348337,89425.0,89422.0,0.01118293]
[1764965438278,0.01118255,89425.0,89422.0,0.01118293]
[1764965438479,0.23483887,89424.0,89420.0,0.01197993]
[1764965438680,0.22365975,89422.0,89421.0,0.001]
[1764965439107,0.23683887,89424.0,89421.0,0.2246611]
[1764965439314,0.002,89424.0,89422.0,0.22365831]
[1764965439569,0.002,89424.0,89421.0,0.23584415]
[1764965439755,0.22365637,89423.0,89421.0,0.001]
[1764965440261,0.22365637,89423.0,89420.0,0.2356433]
[1764965440550,0.23483917,89423.0,89420.0,0.00079675]
[1764965440773,0.23483917,89423.0,89422.0,0.001]
[1764965440912,0.002,89423.0,89422.0,0.001]
[1764965441110,0.002,89423.0,89421.0,0.22366099]
[1764965441320,0.2236563,89423.0,89420.0,0.23564334]
[1764965441521,0.2256563,89423.0,89420.0,0.23664334]
[1764965441928,0.2256563,89423.0,89420.0,0.23564334]
[1764965442357,0.2236563,89423.0,89421.0,0.001]
[1764965442534,0.2236586,89422.0,89421.0,0.001]
[1764965442739,0.2621986,89422.0,89421.0,0.001]
[1764965443049,0.2621986,89422.0,89421.0,0.00187714]
[1764965443251,0.26381147,89422.0,89421.0,0.00187714]
[1764965443653,0.29832832,89422.0,89421.0,0.00087714]
[1764965444095,0.33846715,89422.0,89421.0,0.00087714]
[1764965444275,0.34946715,89422.0,89421.0,0.00087714]
[1764965444676,0.33846715,89422.0,89421.0,0.00087714]
[1764965444925,0.42203338,89422.0,89421.0,0.00087714]
[1764965445303,0.42303338,89422.0,89421.0,0.00087714]
[1764965445981,0.31332832,89422.0,89421.0,0.00087714]
[1764965446190,0.3069373,89422.0,89421.0,0.00087714]
[1764965446593,0.3059373,89422.0,89421.0,0.00087714]
[1764965446812,0.014,89422.0,89421.0,0.00087714]
[1764965447013,0.016,89422.0,89421.0,0.00087714]
[1764965447247,0.2396586,89422.0,89421.0,0.00087714]
[1764965447447,0.016,89422.0,89421.0,0.00087714]
[1764965447652,0.2396586,89422.0,89421.0,0.00087714]
[1764965448192,0.2236586,89422.0,89421.0,0.00087714]
[1764965448394,0.2392286,89422.0,89421.0,0.00087714]
[1764965448605,0.2442286,89422.0,89421.0,0.00087714]
[1764965448803,0.2671986,89422.0,89421.0,0.00087714]
[1764965450673,0.2286586,89422.0,89421.0,0.00087714]
[1764965452607,0.005,89422.0,89421.0,0.22453824]
[1764965452822,0.005,89422.0,89421.0,0.00087714]
[1764965453302,0.005,89422.0,89421.0,0.22453824]
[1764965454117,0.005,89422.0,89421.0,0.24645088]
[1764965454322,0.005,89422.0,89421.0,0.22453824]
[1764965454525,0.005,89422.0,89421.0,0.24645088]
[1764965456964,0.005,89422.0,89421.0,0.22453824]
[1764965458183,0.005,89422.0,89421.0,0.25493088]
[1764965458385,0.005,89422.0,89421.0,0.27059088]
[1764965458800,0.005,89422.0,89421.0,0.29367088]
[1764965459981,0.01118155,89433.0,89431.0,0.24554834]
[1764965460184,0.01118042,89442.0,89435.0,0.22362359]
[1764965460389,0.01118042,89442.0,89438.0,0.01118092]
[1764965460589,0.01118042,89442.0,89439.0,0.02191264]
[1764965460792,0.22361347,89441.0,89439.0,0.02191264]
[1764965460995,0.22359334,89449.0,89445.0,0.01118005]
[1764965461201,0.23477413,89448.0,89446.0,0.02191264]
[1764965461777,0.02404433,89454.0,89450.0,0.22358859]
[1764965461778,0.01204,89451.0,89450.0,0.22358859]
[1764965461895,0.01117855,89457.0,89452.0,0.01117917]
[1764965462100,0.24646201,89460.0,89447.0,0.23925495]
[1764965462298,0.01117843,89458.0,89452.0,0.22358117]
[1764965462510,0.01117868,89456.0,89455.0,0.02191264]
[1764965462735,0.01117917,89452.0,89447.0,0.23477589]
[1764965462979,0.22358296,89453.0,89450.0,0.22358857]
[1764965463299,0.02452,89459.0,89448.0,0.01117967]
[1764965463300,0.0111773,89467.0,89462.0,0.22355737]
[1764965463423,0.24123204,89465.0,89462.0,0.02191264]
[1764965463631,0.22355485,89464.0,89462.0,0.02191264]
[1764965464126,0.0111778,89463.0,89460.0,0.01117818]
[1764965464345,0.23473666,89462.0,89459.0,0.24547751]
[1764965464502,0.24708666,89462.0,89459.0,0.02191264]
[1764965464824,0.24708666,89462.0,89459.0,0.24547832]
[1764965464970,0.24708666,89462.0,89459.0,0.25665662]
[1764965465170,0.02352793,89462.0,89460.0,0.22356288]
[1764965465531,0.01235,89462.0,89460.0,0.22356288]
[1764965465825,0.02817768,89464.0,89462.0,0.22355666]
[1764965465826,0.017,89464.0,89462.0,0.22355666]
[1764965466194,0.002,89464.0,89462.0,0.22355666]
[1764965466404,0.01117655,89473.0,89468.0,0.22354216]
[1764965466611,0.22353954,89470.0,89467.0,0.0111773]
[1764965466809,0.01117618,89476.0,89472.0,0.23470865]
[1764965467128,0.01117643,89474.0,89470.0,0.01117693]
[1764965467326,0.23470824,89473.0,89469.0,0.01117705]
[1764965467546,0.0288563,89475.0,89471.0,0.0111768]
[1764965467735,0.23470542,89474.0,89470.0,0.23471466]
[1764965467938,0.01117655,89473.0,89470.0,0.02191264]
[1764965468271,0.01117655,89473.0,89472.0,0.22353361]
[1764965468272,0.01235,89473.0,89472.0,0.22353361]
[1764965468419,0.01117555,89481.0,89478.0,0.01117593]
[1764965468647,0.23468731,89481.0,89477.0,0.23469507]
[1764965468947,0.23468731,89481.0,89478.0,0.23469429]
[1764965469176,0.22350614,89483.0,89478.0,0.23469429]
[1764965469177,0.03003,89484.0,89480.0,0.01117568]
[1764965469385,0.24702917,89484.0,89480.0,0.01117568]
[1764965469560,0.22351143,89481.0,89478.0,0.2235178]
[1764965469765,0.01117568,89480.0,89477.0,0.23469703]
[1764965470066,0.23468944,89480.0,89476.0,0.01117618]
[1764965470264,0.22351675,89479.0,89478.0,0.002]
[1764965470676,0.01,89481.0,89478.0,0.01317593]
[1764965470939,0.01,89481.0,89479.0,0.22351613]
[1764965471128,0.00011861,89484.0,89483.0,0.24541878]
[1764965471304,0.00011861,89484.0,89483.0,0.26120878]
[1764965472542,0.00011861,89484.0,89483.0,0.24541878]
[1764965473780,0.00011861,89484.0,89483.0,0.26220878]
[1764965473923,0.00511861,89484.0,89483.0,0.26420878]
[1764965475124,0.00511861,89484.0,89483.0,0.28714878]
[1764965475332,0.00511861,89484.0,89483.0,0.26420878]
[1764965477621,0.00511861,89484.0,89483.0,0.24841878]
[1764965477857,0.00511861,89484.0,89483.0,0.22650614]
[1764965478838,0.00511861,89484.0,89483.0,0.003]
[1764965479055,0.22862225,89484.0,89483.0,0.003]
[1764965479277,0.24371225,89484.0,89483.0,0.003]
[1764965479721,0.22862225,89484.0,89483.0,0.003]
[1764965480052,0.00511861,89484.0,89483.0,0.22650614]
[1764965480668,0.00511861,89484.0,89483.0,0.26523614]
[1764965480872,0.00511861,89484.0,89483.0,0.28714878]
[1764965481520,0.00511861,89484.0,89483.0,0.34967177]
[1764965481743,0.00011861,89484.0,89483.0,0.34767177]
[1764965482091,0.00011861,89484.0,89483.0,0.49647177]
[1764965482606,0.00011861,89484.0,89483.0,0.49547177]
[1764965482811,0.00011861,89484.0,89483.0,0.66967177]
[1764965483013,0.00011861,89484.0,89483.0,0.67067177]
[1764965483421,0.00011861,89484.0,89483.0,0.66967177]
[1764965483600,0.00511861,89484.0,89483.0,0.67067177]
[1764965483785,0.00511861,89484.0,89483.0,0.67267177]
[1764965483996,0.00011861,89484.0,89483.0,0.67167177]
[1764965484203,0.00111861,89484.0,89483.0,0.67267177]
[1764965485127,0.00111861,89484.0,89483.0,0.67467177]
[1764965487383,0.0002,89520.0,89519.0,0.22341625]
[1764965487598,0.00031881,89520.0,89519.0,0.23920625]
[1764965487802,0.01235,89519.0,89517.0,0.01117106]
[1764965488024,0.01235,89519.0,89518.0,0.22341875]
[1764965488226,0.01235,89519.0,89517.0,0.23459175]
[1764965488634,0.02626093,89518.0,89513.0,0.22342998]
[1764965488852,0.23460583,89512.0,89510.0,0.22343869]
[1764965489057,0.2346065,89512.0,89509.0,0.23461274]
[1764965489300,0.22343379,89512.0,89509.0,0.01117206]
[1764965489495,0.22343664,89511.0,89508.0,0.23461578]
[1764965489649,0.23460647,89512.0,89508.0,0.23461578]
[1764965489853,0.01509,89509.0,89503.0,0.23462863]
[1764965490107,0.01509,89509.0,89500.0,0.00878]
[1764965490108,0.01117268,89504.0,89500.0,0.01117318]
[1764965490320,0.01117256,89505.0,89501.0,0.01117305]
[1764965490528,0.01235,89506.0,89502.0,0.23463149]
[1764965490748,0.23462646,89504.0,89500.0,0.01117318]
[1764965490951,0.01509,89501.0,89500.0,0.22346368]
[1764965491281,0.01509,89501.0,89500.0,0.22446368]
[1764965491509,0.003,89504.0,89503.0,0.22345619]
[1764965493551,0.01396287,89506.0,89505.0,0.2234512]
[1764965494569,0.02937287,89506.0,89505.0,0.2234512]
[1764965494719,0.02937287,89506.0,89504.0,0.2234537]
[1764965495286,0.02937287,89506.0,89501.0,0.01117305]
[1764965495287,0.2424118,89506.0,89505.0,0.001]
[1764965495489,0.22345403,89504.0,89502.0,0.01117293]
[1764965495713,0.237414,89506.0,89503.0,0.0111728]
[1764965495912,0.01396287,89506.0,89505.0,0.2234512]
[1764965496115,0.01396287,89506.0,89504.0,0.22345147]
[1764965496338,0.01396287,89506.0,89505.0,0.001]
[1764965496538,0.01396287,89506.0,89505.0,0.2244512]
[1764965497058,0.005,89506.0,89505.0,0.2399512]
[1764965497260,0.01768,89517.0,89511.0,0.01117181]
[1764965497465,0.23460383,89513.0,89509.0,0.23461087]
[1764965498002,0.23460383,89513.0,89510.0,0.22343791]
[1764965498246,0.22343446,89512.0,89509.0,0.23461273]
[1764965498423,0.01117193,89510.0,89507.0,0.22344588]
[1764965498763,0.01117193,89510.0,89505.0,0.01217256]
[1764965498764,0.2234487,89506.0,89505.0,0.001]
[1764965499469,0.2234487,89506.0,89502.0,0.03308557]
[1764965499470,0.01117256,89505.0,89502.0,0.03308557]
[1764965499676,0.22345619,89503.0,89502.0,0.02191264]
[1764965500034,0.22345596,89504.0,89502.0,0.02191264]
[1764965500235,0.23462853,89505.0,89502.0,0.24537111]
[1764965500438,0.01117256,89505.0,89502.0,0.02191264]